[Event "Titled Tuesday Blitz April 18 Early 2023"]
[White "Janaszak, Dawid"]
[Black "Koutsin, Sergey"]
[WhiteFideId "1119206"]
[BlackFideId "14101483"]
[WhiteElo "2220"]
[BlackElo "2381"]
[Result "1-0"]
[Round "10"]
[TimeControl "180+2"]
[Date "2023.04.18"]
[WhiteClock "0:01:28"]
[BlackClock "0:00:24"]

1. e4 {[%clk 0:03:00]}  e6 {[%clk 0:03:00]} 2. b3 {[%clk 0:03:00]}  d5 {[%clk 0:02:59]} 3. Bb2 {[%clk 0:03:01]}  dxe4 {[%clk 0:02:59]} 4. Nc3 {[%clk 0:03:01]}  Nf6 {[%clk 0:03:00]} 5. Qe2 {[%clk 0:03:01]}  b6 {[%clk 0:02:58]} 6. Nxe4 {[%clk 0:02:59]}  Bb7 {[%clk 0:02:58]} 7. Nxf6+ {[%clk 0:02:53]}  gxf6 {[%clk 0:02:57]} 8. O-O-O {[%clk 0:02:53]}  a5 {[%clk 0:02:49]} 9. Qh5 {[%clk 0:02:46]}  a4 {[%clk 0:02:36]} 10. Bb5+ {[%clk 0:02:46]}  c6 {[%clk 0:02:33]} 11. Bc4 {[%clk 0:02:45]}  Qe7 {[%clk 0:01:35]} 12. Nf3 {[%clk 0:02:43]}  Kd8 {[%clk 0:01:26]} 13. Rhe1 {[%clk 0:02:32]}  Nd7 {[%clk 0:01:24]} 14. Nd4 {[%clk 0:02:30]}  axb3 {[%clk 0:01:13]} 15. axb3 {[%clk 0:02:28]}  Ne5 {[%clk 0:00:56]} 16. Rxe5 {[%clk 0:02:17]}  fxe5 {[%clk 0:00:56]} 17. Qxe5 {[%clk 0:02:18]}  Rg8 {[%clk 0:00:50]} 18. Qe4 {[%clk 0:01:58]}  Kc7 {[%clk 0:00:46]} 19. Nxe6+ {[%clk 0:01:41]}  fxe6 {[%clk 0:00:38]} 20. Bxe6 {[%clk 0:01:42]}  Re8 {[%clk 0:00:25]} 21. Be5+ {[%clk 0:01:33]}  Kd8 {[%clk 0:00:24]} 22. Qd3+ {[%clk 0:01:28]} 1-0


[Site "https://www.chess.com"]

[Event "Titled Tuesday Blitz April 18 Early 2023"]
[White "MKlose11"]
[Black "Dwilewicz, Katarzyna"]
[BlackFideId "1148486"]
[WhiteElo "2586"]
[BlackElo "2065"]
[Result "0-1"]
[Round "10"]
[TimeControl "180+2"]
[Date "2023.04.18"]
[WhiteClock "0:01:10"]
[BlackClock "0:00:08"]

1. e4 {[%clk 0:02:58]}  c5 {[%clk 0:02:59]} 2. Nc3 {[%clk 0:02:58]}  e6 {[%clk 0:02:58]} 3. g3 {[%clk 0:02:59]}  d5 {[%clk 0:02:58]} 4. Bg2 {[%clk 0:02:59]}  Nf6 {[%clk 0:02:57]} 5. Nge2 {[%clk 0:02:58]}  Nc6 {[%clk 0:02:55]} 6. exd5 {[%clk 0:02:58]}  exd5 {[%clk 0:02:54]} 7. d4 {[%clk 0:02:58]}  cxd4 {[%clk 0:02:52]} 8. Nxd4 {[%clk 0:02:58]}  Bg4 {[%clk 0:02:35]} 9. Nce2 {[%clk 0:02:57]}  Bc5 {[%clk 0:02:29]} 10. Be3 {[%clk 0:02:50]}  Qb6 {[%clk 0:02:04]} 11. f3 {[%clk 0:02:34]}  Bd7 {[%clk 0:01:58]} 12. O-O {[%clk 0:02:30]}  O-O {[%clk 0:01:58]} 13. c3 {[%clk 0:02:24]}  Rfe8 {[%clk 0:01:57]} 14. Bf2 {[%clk 0:02:21]}  Nxd4 {[%clk 0:01:31]} 15. Nxd4 {[%clk 0:02:12]}  Qxb2 {[%clk 0:01:27]} 16. Rb1 {[%clk 0:02:12]}  Qxa2 {[%clk 0:01:13]} 17. Rxb7 {[%clk 0:02:11]}  Qa4 {[%clk 0:00:49]} 18. Qd3 {[%clk 0:02:03]}  Rab8 {[%clk 0:00:48]} 19. Rfb1 {[%clk 0:02:01]}  Rxb7 {[%clk 0:00:47]} 20. Rxb7 {[%clk 0:02:01]}  Qa1+ {[%clk 0:00:46]} 21. Bf1 {[%clk 0:02:01]}  Bh3 {[%clk 0:00:44]} 22. Rb1 {[%clk 0:01:42]}  Bxf1 {[%clk 0:00:40]} 23. Rxf1 {[%clk 0:01:42]}  Qa2 {[%clk 0:00:36]} 24. Qb5 {[%clk 0:01:38]}  Bb6 {[%clk 0:00:33]} 25. g4 {[%clk 0:01:35]}  h6 {[%clk 0:00:32]} 26. h4 {[%clk 0:01:34]}  Qc4 {[%clk 0:00:30]} 27. Qb1 {[%clk 0:01:31]}  Qxc3 {[%clk 0:00:26]} 28. g5 {[%clk 0:01:27]}  hxg5 {[%clk 0:00:22]} 29. hxg5 {[%clk 0:01:28]}  Nh5 {[%clk 0:00:22]} 30. Qb5 {[%clk 0:01:24]}  Rc8 {[%clk 0:00:12]} 31. Nf5 {[%clk 0:01:18]}  Bxf2+ {[%clk 0:00:07]} 32. Rxf2 {[%clk 0:01:18]}  Qc1+ {[%clk 0:00:07]} 33. Rf1 {[%clk 0:01:15]}  Qxg5+ {[%clk 0:00:07]} 34. Kf2 {[%clk 0:01:15]}  Qxf5 {[%clk 0:00:08]} 35. Re1 {[%clk 0:01:08]}  Rc2+ {[%clk 0:00:08]} 36. Re2 {[%clk 0:01:08]}  Rxe2+ {[%clk 0:00:07]} 37. Kxe2 {[%clk 0:01:09]}  Qe6+ {[%clk 0:00:08]} 38. Kf2 {[%clk 0:01:09]}  Qb6+ {[%clk 0:00:08]} 39. Qxb6 {[%clk 0:01:10]}  axb6 {[%clk 0:00:08]} 0-1


[Site "https://www.chess.com"]

[Event "Titled Tuesday Blitz April 18 Early 2023"]
[White "Novikova, Galina"]
[Black "benny_aizenberg"]
[WhiteFideId "4157095"]
[WhiteElo "1953"]
[BlackElo "2574"]
[Result "0-1"]
[Round "10"]
[TimeControl "180+2"]
[Date "2023.04.18"]
[WhiteClock "0:00:49"]
[BlackClock "0:00:23"]

1. e4 {[%clk 0:03:00]}  d6 {[%clk 0:02:55]} 2. d4 {[%clk 0:03:00]}  Nf6 {[%clk 0:02:55]} 3. Nc3 {[%clk 0:03:01]}  g6 {[%clk 0:02:55]} 4. f3 {[%clk 0:03:01]}  Bg7 {[%clk 0:02:54]} 5. Be3 {[%clk 0:03:02]}  c6 {[%clk 0:02:54]} 6. Qd2 {[%clk 0:03:03]}  b5 {[%clk 0:02:55]} 7. O-O-O {[%clk 0:03:03]}  b4 {[%clk 0:02:55]} 8. Nce2 {[%clk 0:03:03]}  a5 {[%clk 0:02:55]} 9. Kb1 {[%clk 0:03:03]}  Nbd7 {[%clk 0:02:53]} 10. g4 {[%clk 0:03:03]}  Nb6 {[%clk 0:02:53]} 11. Nc1 {[%clk 0:03:04]}  h5 {[%clk 0:02:47]} 12. g5 {[%clk 0:03:00]}  Nfd7 {[%clk 0:02:46]} 13. h4 {[%clk 0:03:01]}  Ba6 {[%clk 0:02:45]} 14. Bxa6 {[%clk 0:03:00]}  Rxa6 {[%clk 0:02:45]} 15. Qe2 {[%clk 0:03:01]}  Qa8 {[%clk 0:02:44]} 16. f4 {[%clk 0:02:59]}  a4 {[%clk 0:02:40]} 17. f5 {[%clk 0:02:50]}  a3 {[%clk 0:02:34]} 18. b3 {[%clk 0:02:49]}  Ra5 {[%clk 0:02:19]} 19. fxg6 {[%clk 0:02:46]}  fxg6 {[%clk 0:02:19]} 20. Nh3 {[%clk 0:02:47]}  c5 {[%clk 0:02:16]} 21. Nf4 {[%clk 0:02:43]}  Qxe4 {[%clk 0:02:14]} 22. Qd2 {[%clk 0:02:36]}  cxd4 {[%clk 0:02:05]} 23. Bxd4 {[%clk 0:02:34]}  Bxd4 {[%clk 0:01:52]} 24. Rhe1 {[%clk 0:02:31]}  Bc3 {[%clk 0:00:53]} 25. Rxe4 {[%clk 0:02:17]}  Bxd2 {[%clk 0:00:52]} 26. Rxd2 {[%clk 0:02:18]}  Ne5 {[%clk 0:00:53]} 27. Rxb4 {[%clk 0:02:17]}  Nbd7 {[%clk 0:00:53]} 28. Ncd3 {[%clk 0:02:10]}  O-O {[%clk 0:00:50]} 29. c4 {[%clk 0:01:58]}  Nxd3 {[%clk 0:00:44]} 30. Nxd3 {[%clk 0:01:58]}  Rf1+ {[%clk 0:00:44]} 31. Kc2 {[%clk 0:01:58]}  Ra1 {[%clk 0:00:44]} 32. Kc3 {[%clk 0:01:58]}  Kf7 {[%clk 0:00:42]} 33. Rf2+ {[%clk 0:01:55]}  Ke6 {[%clk 0:00:41]} 34. Nf4+ {[%clk 0:01:55]}  Kf5 {[%clk 0:00:37]} 35. Rb7 {[%clk 0:01:45]}  Nc5 {[%clk 0:00:36]} 36. Nd3+ {[%clk 0:01:29]}  Kg4 {[%clk 0:00:32]} 37. Nxc5 {[%clk 0:01:27]}  Rxc5 {[%clk 0:00:32]} 38. Rxe7 {[%clk 0:01:25]}  Kxh4 {[%clk 0:00:32]} 39. Re6 {[%clk 0:01:21]}  Rxg5 {[%clk 0:00:31]} 40. Rxd6 {[%clk 0:01:18]}  Rc1+ {[%clk 0:00:30]} 41. Kb4 {[%clk 0:01:18]}  Kg3 {[%clk 0:00:28]} 42. Rdd2 {[%clk 0:01:14]}  Rg1 {[%clk 0:00:23]} 43. Kxa3 {[%clk 0:01:14]}  h4 {[%clk 0:00:23]} 44. b4 {[%clk 0:01:13]}  h3 {[%clk 0:00:23]} 45. c5 {[%clk 0:01:13]}  Rh5 {[%clk 0:00:21]} 46. c6 {[%clk 0:01:12]}  h2 {[%clk 0:00:20]} 47. Rxh2 {[%clk 0:01:11]}  Rxh2 {[%clk 0:00:20]} 48. Rxh2 {[%clk 0:01:06]}  Kxh2 {[%clk 0:00:21]} 49. b5 {[%clk 0:01:05]}  Rc1 {[%clk 0:00:21]} 50. Kb4 {[%clk 0:00:55]}  g5 {[%clk 0:00:21]} 51. Ka5 {[%clk 0:00:51]}  g4 {[%clk 0:00:22]} 52. b6 {[%clk 0:00:52]}  Rc5+ {[%clk 0:00:21]} 53. Ka6 {[%clk 0:00:47]}  Rxc6 {[%clk 0:00:22]} 54. Kb5 {[%clk 0:00:45]}  Rxb6+ {[%clk 0:00:22]} 55. Kxb6 {[%clk 0:00:46]}  g3 {[%clk 0:00:22]} 56. a4 {[%clk 0:00:47]}  g2 {[%clk 0:00:23]} 57. a5 {[%clk 0:00:48]}  g1=Q+ {[%clk 0:00:23]} 58. Ka6 {[%clk 0:00:48]}  Qc5 {[%clk 0:00:23]} 59. Kb7 {[%clk 0:00:49]}  Qxa5 {[%clk 0:00:23]} 0-1


[Site "https://www.chess.com"]

[Event "Titled Tuesday Blitz April 18 Early 2023"]
[White "Gheorghiu, Calin"]
[Black "Moksh Amit Doshi"]
[WhiteFideId "1200305"]
[BlackFideId "25064967"]
[WhiteElo "2223"]
[BlackElo "2297"]
[Result "0-1"]
[Round "10"]
[TimeControl "180+2"]
[Date "2023.04.18"]
[WhiteClock "0:00:02"]
[BlackClock "0:00:51"]

1. e4 {[%clk 0:03:00]}  c6 {[%clk 0:02:57]} 2. d4 {[%clk 0:02:57]}  d5 {[%clk 0:02:57]} 3. e5 {[%clk 0:02:57]}  Bf5 {[%clk 0:02:56]} 4. Nf3 {[%clk 0:02:57]}  e6 {[%clk 0:02:56]} 5. Be2 {[%clk 0:02:56]}  Nd7 {[%clk 0:02:49]} 6. O-O {[%clk 0:02:56]}  a5 {[%clk 0:02:50]} 7. a4 {[%clk 0:02:33]}  Ne7 {[%clk 0:02:47]} 8. b3 {[%clk 0:02:31]}  f6 {[%clk 0:02:36]} 9. c4 {[%clk 0:02:19]}  Ng6 {[%clk 0:02:26]} 10. Bb2 {[%clk 0:02:12]}  fxe5 {[%clk 0:02:24]} 11. dxe5 {[%clk 0:02:10]}  Bc5 {[%clk 0:02:16]} 12. cxd5 {[%clk 0:01:38]}  cxd5 {[%clk 0:02:14]} 13. Nc3 {[%clk 0:01:37]}  O-O {[%clk 0:02:12]} 14. Nb5 {[%clk 0:01:36]}  Nf4 {[%clk 0:02:09]} 15. Rc1 {[%clk 0:01:27]}  Qb6 {[%clk 0:02:04]} 16. Nfd4 {[%clk 0:01:13]}  Nxe5 {[%clk 0:01:37]} 17. Nxf5 {[%clk 0:00:16]}  Rxf5 {[%clk 0:01:38]} 18. Bg4 {[%clk 0:00:16]}  Nxg4 {[%clk 0:01:28]} 19. Qxg4 {[%clk 0:00:15]}  Bxf2+ {[%clk 0:01:22]} 20. Kh1 {[%clk 0:00:06]}  Ng6 {[%clk 0:01:10]} 21. Nc7 {[%clk 0:00:05]}  Raf8 {[%clk 0:01:09]} 22. Ba3 {[%clk 0:00:03]}  Bc5 {[%clk 0:00:54]} 23. Bxc5 {[%clk 0:00:02]}  Rxf1+ {[%clk 0:00:51]} 0-1


[Site "https://www.chess.com"]

[Event "Titled Tuesday Blitz April 18 Early 2023"]
[White "Koutlas, Nikolaos"]
[Black "Cherniaiev, Tykhon"]
[WhiteFideId "25827138"]
[BlackFideId "14182360"]
[WhiteElo "2215"]
[BlackElo "2450"]
[Result "0-1"]
[Round "10"]
[TimeControl "180+2"]
[Date "2023.04.18"]
[WhiteClock "0:01:38"]
[BlackClock "0:01:43"]

1. c4 {[%clk 0:03:00]}  e5 {[%clk 0:03:00]} 2. Nc3 {[%clk 0:02:59]}  Nf6 {[%clk 0:03:00]} 3. g3 {[%clk 0:02:58]}  d5 {[%clk 0:03:00]} 4. cxd5 {[%clk 0:02:58]}  Nxd5 {[%clk 0:03:01]} 5. Bg2 {[%clk 0:02:58]}  Be6 {[%clk 0:02:56]} 6. Nf3 {[%clk 0:02:49]}  Nc6 {[%clk 0:02:52]} 7. O-O {[%clk 0:02:46]}  Nb6 {[%clk 0:02:52]} 8. a3 {[%clk 0:02:36]}  a5 {[%clk 0:02:51]} 9. d3 {[%clk 0:02:36]}  Be7 {[%clk 0:02:50]} 10. Be3 {[%clk 0:02:31]}  O-O {[%clk 0:02:50]} 11. Rc1 {[%clk 0:02:29]}  Nd5 {[%clk 0:02:47]} 12. Nxd5 {[%clk 0:02:23]}  Bxd5 {[%clk 0:02:48]} 13. Bc5 {[%clk 0:02:23]}  f6 {[%clk 0:02:43]} 14. Bxe7 {[%clk 0:02:19]}  Qxe7 {[%clk 0:02:44]} 15. Nd2 {[%clk 0:02:07]}  Bxg2 {[%clk 0:02:38]} 16. Kxg2 {[%clk 0:02:08]}  Kh8 {[%clk 0:02:38]} 17. Ne4 {[%clk 0:02:02]}  Nd4 {[%clk 0:02:34]} 18. e3 {[%clk 0:02:01]}  Ne6 {[%clk 0:02:34]} 19. Qb3 {[%clk 0:02:00]}  c6 {[%clk 0:02:33]} 20. a4 {[%clk 0:01:57]}  Rfd8 {[%clk 0:02:32]} 21. Rfd1 {[%clk 0:01:54]}  Rd5 {[%clk 0:02:08]} 22. Qb6 {[%clk 0:01:47]}  h6 {[%clk 0:01:51]} 23. Nc5 {[%clk 0:01:41]}  Rxc5 {[%clk 0:01:42]} 24. Rxc5 {[%clk 0:01:38]}  Nxc5 {[%clk 0:01:43]} 0-1


[Site "https://www.chess.com"]

[Event "Titled Tuesday Blitz April 18 Early 2023"]
[White "Wisniacki, Flavio"]
[Black "Weetik, Vjacheslav"]
[WhiteFideId "119229"]
[BlackFideId "4153472"]
[WhiteElo "2150"]
[BlackElo "2469"]
[Result "0-1"]
[Round "10"]
[TimeControl "180+2"]
[Date "2023.04.18"]
[WhiteClock "0:00:54"]
[BlackClock "0:01:26"]

1. Nf3 {[%clk 0:02:52]}  g6 {[%clk 0:02:59]} 2. g3 {[%clk 0:02:52]}  Bg7 {[%clk 0:03:00]} 3. Bg2 {[%clk 0:02:52]}  e5 {[%clk 0:03:00]} 4. O-O {[%clk 0:02:52]}  Ne7 {[%clk 0:03:01]} 5. d3 {[%clk 0:02:53]}  d5 {[%clk 0:03:00]} 6. c4 {[%clk 0:02:53]}  c6 {[%clk 0:02:58]} 7. cxd5 {[%clk 0:02:51]}  cxd5 {[%clk 0:02:57]} 8. Nc3 {[%clk 0:02:52]}  Nbc6 {[%clk 0:02:58]} 9. e4 {[%clk 0:02:52]}  d4 {[%clk 0:02:55]} 10. Ne2 {[%clk 0:02:50]}  h6 {[%clk 0:02:49]} 11. Ne1 {[%clk 0:02:50]}  Be6 {[%clk 0:02:46]} 12. f4 {[%clk 0:02:50]}  Qd7 {[%clk 0:02:41]} 13. Nf3 {[%clk 0:02:46]}  f6 {[%clk 0:02:41]} 14. fxe5 {[%clk 0:02:40]}  fxe5 {[%clk 0:02:40]} 15. Bd2 {[%clk 0:02:37]}  O-O {[%clk 0:02:37]} 16. Rc1 {[%clk 0:02:35]}  g5 {[%clk 0:02:32]} 17. Qa4 {[%clk 0:02:22]}  Ng6 {[%clk 0:02:26]} 18. Bb4 {[%clk 0:02:21]}  Nxb4 {[%clk 0:02:11]} 19. Qxb4 {[%clk 0:02:22]}  g4 {[%clk 0:02:11]} 20. Nd2 {[%clk 0:02:19]}  h5 {[%clk 0:02:11]} 21. Rxf8+ {[%clk 0:02:14]}  Rxf8 {[%clk 0:02:10]} 22. Rf1 {[%clk 0:02:14]}  Rc8 {[%clk 0:01:58]} 23. Rc1 {[%clk 0:02:11]}  Rxc1+ {[%clk 0:01:56]} 24. Nxc1 {[%clk 0:02:10]}  Bh6 {[%clk 0:01:57]} 25. Ncb3 {[%clk 0:02:00]}  Be3+ {[%clk 0:01:46]} 26. Kh1 {[%clk 0:01:58]}  Qf7 {[%clk 0:01:43]} 27. Nf1 {[%clk 0:01:27]}  Qf2 {[%clk 0:01:38]} 28. Nxe3 {[%clk 0:01:19]}  dxe3 {[%clk 0:01:38]} 29. Nc1 {[%clk 0:00:54]}  h4 {[%clk 0:01:26]} 0-1


[Site "https://www.chess.com"]

[Event "Titled Tuesday Blitz April 18 Early 2023"]
[White "Dushyant Sharma"]
[Black "Erzhanov, Arman"]
[WhiteFideId "25065130"]
[BlackFideId "4138821"]
[WhiteElo "2198"]
[BlackElo "2138"]
[Result "0-1"]
[Round "10"]
[TimeControl "180+2"]
[Date "2023.04.18"]
[WhiteClock "0:00:02"]
[BlackClock "0:00:44"]

1. e4 {[%clk 0:03:00]}  d6 {[%clk 0:02:57]} 2. d4 {[%clk 0:03:00]}  Nf6 {[%clk 0:02:57]} 3. Nc3 {[%clk 0:03:01]}  c6 {[%clk 0:02:57]} 4. Be3 {[%clk 0:03:01]}  e5 {[%clk 0:02:56]} 5. dxe5 {[%clk 0:03:00]}  dxe5 {[%clk 0:02:56]} 6. Qxd8+ {[%clk 0:03:01]}  Kxd8 {[%clk 0:02:57]} 7. O-O-O+ {[%clk 0:03:01]}  Nbd7 {[%clk 0:02:50]} 8. Bc4 {[%clk 0:03:00]}  Ke8 {[%clk 0:02:47]} 9. Nf3 {[%clk 0:02:57]}  Bb4 {[%clk 0:02:45]} 10. Rhe1 {[%clk 0:02:39]}  b5 {[%clk 0:02:35]} 11. Bb3 {[%clk 0:02:38]}  Ke7 {[%clk 0:02:28]} 12. a3 {[%clk 0:02:36]}  Bxc3 {[%clk 0:02:12]} 13. bxc3 {[%clk 0:02:36]}  Nxe4 {[%clk 0:02:12]} 14. Bd4 {[%clk 0:02:07]}  Nef6 {[%clk 0:01:48]} 15. Nxe5 {[%clk 0:02:03]}  Nxe5 {[%clk 0:01:49]} 16. Bc5+ {[%clk 0:01:49]}  Ke8 {[%clk 0:01:45]} 17. Rxe5+ {[%clk 0:01:49]}  Be6 {[%clk 0:01:45]} 18. Bxe6 {[%clk 0:01:36]}  fxe6 {[%clk 0:01:46]} 19. Rxe6+ {[%clk 0:01:36]}  Kf7 {[%clk 0:01:47]} 20. Rxc6 {[%clk 0:01:34]}  Rhc8 {[%clk 0:01:46]} 21. Rdd6 {[%clk 0:01:31]}  Rxc6 {[%clk 0:01:44]} 22. Rxc6 {[%clk 0:01:32]}  a6 {[%clk 0:01:40]} 23. Bd4 {[%clk 0:01:27]}  h5 {[%clk 0:01:26]} 24. c4 {[%clk 0:01:22]}  bxc4 {[%clk 0:01:26]} 25. Rxc4 {[%clk 0:00:34]}  Nd5 {[%clk 0:01:26]} 26. Rc5 {[%clk 0:00:31]}  Ke6 {[%clk 0:01:26]} 27. c4 {[%clk 0:00:30]}  Nf4 {[%clk 0:01:25]} 28. Kc2 {[%clk 0:00:19]}  Nxg2 {[%clk 0:01:21]} 29. Rc6+ {[%clk 0:00:17]}  Kf5 {[%clk 0:01:17]} 30. Bxg7 {[%clk 0:00:17]}  Nf4 {[%clk 0:01:14]} 31. Bd4 {[%clk 0:00:14]}  Ne6 {[%clk 0:01:14]} 32. Be3 {[%clk 0:00:14]}  h4 {[%clk 0:01:13]} 33. c5 {[%clk 0:00:14]}  Ke5 {[%clk 0:01:12]} 34. Rd6 {[%clk 0:00:11]}  a5 {[%clk 0:01:05]} 35. Rd3 {[%clk 0:00:10]}  Rc8 {[%clk 0:01:04]} 36. Rc3 {[%clk 0:00:10]}  Kd5 {[%clk 0:01:04]} 37. Kb3 {[%clk 0:00:08]}  Nd8 {[%clk 0:01:01]} 38. Ka4 {[%clk 0:00:09]}  Nc6 {[%clk 0:01:02]} 39. Rd3+ {[%clk 0:00:07]}  Kc4 {[%clk 0:01:02]} 40. Rd1 {[%clk 0:00:06]}  Rb8 {[%clk 0:01:00]} 41. Rc1+ {[%clk 0:00:06]}  Kd5 {[%clk 0:01:00]} 42. Rd1+ {[%clk 0:00:05]}  Kc4 {[%clk 0:01:01]} 43. Rd6 {[%clk 0:00:05]}  Na7 {[%clk 0:00:50]} 44. Rb6 {[%clk 0:00:03]}  Rc8 {[%clk 0:00:49]} 45. Kxa5 {[%clk 0:00:03]}  Nb5 {[%clk 0:00:46]} 46. Ka6 {[%clk 0:00:02]}  Ra8+ {[%clk 0:00:44]} 47. Kb7 {[%clk 0:00:02]}  Ra7+ {[%clk 0:00:44]} 48. Kc6 {[%clk 0:00:02]}  Rc7# {[%clk 0:00:44]} 0-1


[Site "https://www.chess.com"]

[Event "Titled Tuesday Blitz April 18 Early 2023"]
[White "Ronka, Erik"]
[Black "Baches Garcia, Guillermo"]
[WhiteFideId "505080"]
[BlackFideId "2209764"]
[WhiteElo "2264"]
[BlackElo "2467"]
[Result "0-1"]
[Round "10"]
[TimeControl "180+2"]
[Date "2023.04.18"]
[WhiteClock "0:00:08"]
[BlackClock "0:01:23"]

1. e4 {[%clk 0:03:00]}  c5 {[%clk 0:02:59]} 2. Nf3 {[%clk 0:03:00]}  Nc6 {[%clk 0:03:00]} 3. d4 {[%clk 0:03:00]}  cxd4 {[%clk 0:02:59]} 4. Nxd4 {[%clk 0:03:01]}  Nf6 {[%clk 0:03:00]} 5. Nc3 {[%clk 0:03:01]}  d6 {[%clk 0:03:01]} 6. Bg5 {[%clk 0:03:00]}  e6 {[%clk 0:03:01]} 7. Qd2 {[%clk 0:02:59]}  h6 {[%clk 0:03:01]} 8. Bxf6 {[%clk 0:02:05]}  gxf6 {[%clk 0:03:02]} 9. O-O-O {[%clk 0:02:03]}  a6 {[%clk 0:03:02]} 10. f4 {[%clk 0:01:54]}  Bd7 {[%clk 0:03:02]} 11. Kb1 {[%clk 0:01:48]}  Qb6 {[%clk 0:03:01]} 12. Nf3 {[%clk 0:01:40]}  O-O-O {[%clk 0:03:00]} 13. g3 {[%clk 0:01:40]}  Be7 {[%clk 0:03:00]} 14. f5 {[%clk 0:01:36]}  Kb8 {[%clk 0:02:46]} 15. fxe6 {[%clk 0:01:33]}  fxe6 {[%clk 0:02:46]} 16. Bh3 {[%clk 0:01:33]}  Ne5 {[%clk 0:02:22]} 17. Qe2 {[%clk 0:01:23]}  Rc8 {[%clk 0:02:13]} 18. Ka1 {[%clk 0:00:59]}  Rxc3 {[%clk 0:01:52]} 19. bxc3 {[%clk 0:00:59]}  Qa5 {[%clk 0:01:49]} 20. Nxe5 {[%clk 0:00:47]}  Qxc3+ {[%clk 0:01:41]} 21. Kb1 {[%clk 0:00:48]}  Qb4+ {[%clk 0:01:38]} 22. Kc1 {[%clk 0:00:42]}  fxe5 {[%clk 0:01:36]} 23. c3 {[%clk 0:00:15]}  Bg5+ {[%clk 0:01:29]} 24. Kc2 {[%clk 0:00:15]}  Ba4+ {[%clk 0:01:25]} 25. Kd3 {[%clk 0:00:10]}  Bb5+ {[%clk 0:01:24]} 26. Kc2 {[%clk 0:00:08]}  Qa4+ {[%clk 0:01:23]} 0-1


[Site "https://www.chess.com"]

[Event "Titled Tuesday Blitz April 18 Early 2023"]
[White "Namitbir Singh Walia"]
[Black "Milchev, Nikolay"]
[WhiteFideId "35071068"]
[BlackFideId "2906090"]
[WhiteElo "2239"]
[BlackElo "2449"]
[Result "1-0"]
[Round "10"]
[TimeControl "180+2"]
[Date "2023.04.18"]
[WhiteClock "0:00:18"]
[BlackClock "0:00:52"]

1. e4 {[%clk 0:03:00]}  e5 {[%clk 0:03:00]} 2. Nf3 {[%clk 0:03:00]}  Nc6 {[%clk 0:03:00]} 3. Bc4 {[%clk 0:02:59]}  Nf6 {[%clk 0:03:00]} 4. d4 {[%clk 0:02:58]}  exd4 {[%clk 0:02:58]} 5. O-O {[%clk 0:02:59]}  d6 {[%clk 0:02:57]} 6. Nxd4 {[%clk 0:02:50]}  Be7 {[%clk 0:02:57]} 7. Nc3 {[%clk 0:02:48]}  O-O {[%clk 0:02:57]} 8. Re1 {[%clk 0:02:46]}  Bd7 {[%clk 0:02:55]} 9. f3 {[%clk 0:02:33]}  Re8 {[%clk 0:02:54]} 10. Be3 {[%clk 0:02:32]}  Bf8 {[%clk 0:02:53]} 11. Qd2 {[%clk 0:02:27]}  h6 {[%clk 0:02:52]} 12. Rad1 {[%clk 0:02:27]}  a6 {[%clk 0:02:51]} 13. a4 {[%clk 0:02:24]}  Ne5 {[%clk 0:02:49]} 14. Bf1 {[%clk 0:02:08]}  c5 {[%clk 0:02:36]} 15. Nf5 {[%clk 0:01:47]}  Bxf5 {[%clk 0:02:33]} 16. exf5 {[%clk 0:01:48]}  Qb6 {[%clk 0:02:17]} 17. b3 {[%clk 0:01:34]}  Qb4 {[%clk 0:02:17]} 18. Nd5 {[%clk 0:01:17]}  Nxd5 {[%clk 0:02:05]} 19. Qxd5 {[%clk 0:01:15]}  Nc6 {[%clk 0:02:04]} 20. Bc4 {[%clk 0:01:09]}  Ne5 {[%clk 0:02:04]} 21. Bd2 {[%clk 0:00:44]}  Qxc4 {[%clk 0:01:32]} 22. bxc4 {[%clk 0:00:42]}  Rab8 {[%clk 0:01:30]} 23. Bc3 {[%clk 0:00:39]}  Nc6 {[%clk 0:01:26]} 24. Rxe8 {[%clk 0:00:34]}  Rxe8 {[%clk 0:01:26]} 25. Rb1 {[%clk 0:00:32]}  Re7 {[%clk 0:01:20]} 26. f6 {[%clk 0:00:30]}  gxf6 {[%clk 0:01:21]} 27. Bxf6 {[%clk 0:00:30]}  Rd7 {[%clk 0:01:20]} 28. Qf5 {[%clk 0:00:29]}  Rc7 {[%clk 0:01:20]} 29. Qg4+ {[%clk 0:00:27]}  Kh7 {[%clk 0:01:20]} 30. Re1 {[%clk 0:00:24]}  Ne5 {[%clk 0:01:17]} 31. Bxe5 {[%clk 0:00:20]}  dxe5 {[%clk 0:01:18]} 32. Rxe5 {[%clk 0:00:20]}  Bg7 {[%clk 0:01:18]} 33. Re8 {[%clk 0:00:21]}  Rc6 {[%clk 0:01:09]} 34. Qe4+ {[%clk 0:00:20]}  Rg6 {[%clk 0:01:10]} 35. h4 {[%clk 0:00:20]}  Bd4+ {[%clk 0:01:10]} 36. Kf1 {[%clk 0:00:20]}  Kg7 {[%clk 0:01:10]} 37. h5 {[%clk 0:00:20]}  Rg5 {[%clk 0:01:10]} 38. Qxb7 {[%clk 0:00:17]}  Rxh5 {[%clk 0:01:07]} 39. Re7 {[%clk 0:00:18]}  Rf5 {[%clk 0:01:04]} 40. Qe4 {[%clk 0:00:17]}  Rf6 {[%clk 0:00:59]} 41. Rb7 {[%clk 0:00:18]}  h5 {[%clk 0:00:52]} 42. a5 {[%clk 0:00:17]}  Kh6 {[%clk 0:00:48]} 43. Rb6 {[%clk 0:00:17]}  Kg5 {[%clk 0:00:48]} 44. Rxf6 {[%clk 0:00:16]}  Kxf6 {[%clk 0:00:49]} 45. Qc6+ {[%clk 0:00:16]}  Ke5 {[%clk 0:00:48]} 46. Qxa6 {[%clk 0:00:16]}  Kf4 {[%clk 0:00:49]} 47. Qb5 {[%clk 0:00:16]}  Ke3 {[%clk 0:00:49]} 48. a6 {[%clk 0:00:17]}  Kd2 {[%clk 0:00:50]} 49. a7 {[%clk 0:00:17]}  Kxc2 {[%clk 0:00:51]} 50. a8=Q {[%clk 0:00:18]}  f5 {[%clk 0:00:52]} 51. Qa2+ {[%clk 0:00:18]}  Kc3 {[%clk 0:00:52]} 52. Qbb3# {[%clk 0:00:18]} 1-0


[Site "https://www.chess.com"]